[Event "Late-Titled-Tuesday-Blitz-April-23-2024"]
[Site "Chess.com"]
[Date "2024.04.23"]
[Round "8"]
[White "aranibos"]
[Black "sassassasss"]
[Result "0-1"]
[WhiteElo "2250"]
[BlackElo "2436"]
[TimeControl "180+1"]
[EndTime "15:28:57 PDT"]
[Termination "sassassasss won by resignation"]

1. d4 {[%clk 0:03:00.9]} 1... Nc6 {[%clk 0:02:58.9]} 2. Nf3 {[%clk 0:02:58.3]}
2... d6 {[%clk 0:02:58.9]} 3. d5 {[%clk 0:02:55.8]} 3... Ne5 {[%clk 0:02:58.7]}
4. Nxe5 {[%clk 0:02:56.4]} 4... dxe5 {[%clk 0:02:59.6]} 5. e4 {[%clk 0:02:56.2]}
5... a6 {[%clk 0:03:00.1]} 6. c4 {[%clk 0:02:55.4]} 6... Nf6 {[%clk 0:03:00.6]}
7. Nc3 {[%clk 0:02:55.9]} 7... e6 {[%clk 0:03:01.2]} 8. Bd3 {[%clk 0:02:55.6]}
8... exd5 {[%clk 0:03:01.7]} 9. cxd5 {[%clk 0:02:55.2]} 9... Bd6 {[%clk
0:03:01.4]} 10. O-O {[%clk 0:02:54.5]} 10... h6 {[%clk 0:03:01.6]} 11. f4 {[%clk
0:02:49.7]} 11... Ng4 {[%clk 0:02:49.3]} 12. h3 {[%clk 0:02:45.7]} 12... Bc5+
{[%clk 0:02:46]} 13. Kh1 {[%clk 0:02:46.1]} 13... Nf2+ {[%clk 0:02:45.6]} 14.
Rxf2 {[%clk 0:02:46.5]} 14... Bxf2 {[%clk 0:02:45.9]} 15. fxe5 {[%clk
0:02:47.1]} 15... O-O {[%clk 0:02:44]} 16. Qf3 {[%clk 0:02:45.7]} 16... Bd4
{[%clk 0:02:43]} 17. Bf4 {[%clk 0:02:45.4]} 17... Qe7 {[%clk 0:02:42.6]} 18. Qg3
{[%clk 0:02:44.1]} 18... Kh8 {[%clk 0:02:36.2]} 19. d6 {[%clk 0:02:42]} 19...
cxd6 {[%clk 0:02:35.5]} 20. Nd5 {[%clk 0:02:41.5]} 20... Qd8 {[%clk 0:02:28.6]}
21. exd6 {[%clk 0:02:42]} 21... Be6 {[%clk 0:02:27.4]} 22. Nc7 {[%clk
0:02:31.5]} 22... Rc8 {[%clk 0:02:26.5]} 23. Nxe6 {[%clk 0:01:56.6]} 23... fxe6
{[%clk 0:02:25.6]} 24. Rb1 {[%clk 0:01:55.2]} 24... Qf6 {[%clk 0:02:23.1]} 25.
Rf1 {[%clk 0:01:43.5]} 25... e5 {[%clk 0:01:56.2]} 26. d7 {[%clk 0:01:40.4]}
26... Rcd8 {[%clk 0:01:45.3]} 27. Be3 {[%clk 0:01:22.5]} 27... Qd6 {[%clk
0:01:41.5]} 28. Rxf8+ {[%clk 0:01:14.6]} 28... Rxf8 {[%clk 0:01:34.1]} 29. Bxd4
{[%clk 0:01:13.6]} 29... Qxd4 {[%clk 0:01:34]} 30. Kh2 {[%clk 0:00:59.2]} 30...
Qxd7 {[%clk 0:01:32.6]} 31. Bc4 {[%clk 0:00:58]} 31... Qe7 {[%clk 0:01:17.3]}
32. Bd5 {[%clk 0:00:56.7]} 32... b6 {[%clk 0:01:12.8]} 33. a4 {[%clk 0:00:53.8]}
33... Qf6 {[%clk 0:01:12.1]} 34. Qe1 {[%clk 0:00:53.6]} 34... Qf4+ {[%clk
0:01:10.2]} 35. Kg1 {[%clk 0:00:53.2]} 35... Rc8 {[%clk 0:01:05.2]} 36. Bb3
{[%clk 0:00:45]} 36... Rc1 {[%clk 0:01:04.1]} 37. Bd1 {[%clk 0:00:42]} 37... Kh7
{[%clk 0:00:58.6]} 38. g3 {[%clk 0:00:38.4]} 38... Qg5 {[%clk 0:00:56.5]} 39.
Kg2 {[%clk 0:00:38.3]} 39... Rb1 {[%clk 0:00:49]} 40. h4 {[%clk 0:00:35.1]}
40... Qc1 {[%clk 0:00:47.7]} 41. Kh3 {[%clk 0:00:35.7]} 41... Qxd1 {[%clk
0:00:46.7]} 0-1

[Event "Late-Titled-Tuesday-Blitz-April-23-2024"]
[Site "Chess.com"]
[Date "2024.04.23"]
[Round "8"]
[White "FlemingA"]
[Black "nabukatnezarr"]
[Result "1/2-1/2"]
[WhiteElo "2461"]
[BlackElo "2620"]
[TimeControl "180+1"]
[EndTime "15:29:02 PDT"]
[Termination "Game drawn by repetition"]

1. e4 {[%clk 0:03:00.9]} 1... e5 {[%clk 0:02:56.1]} 2. Nf3 {[%clk 0:02:55.9]}
2... Nc6 {[%clk 0:02:55.7]} 3. c3 {[%clk 0:02:52.6]} 3... Nf6 {[%clk 0:02:29.6]}
4. d4 {[%clk 0:02:50.3]} 4... d5 {[%clk 0:02:29.2]} 5. dxe5 {[%clk 0:02:26.7]}
5... Nxe4 {[%clk 0:02:27.5]} 6. Nbd2 {[%clk 0:02:24.7]} 6... Bc5 {[%clk
0:02:22.2]} 7. Nxe4 {[%clk 0:02:20.4]} 7... dxe4 {[%clk 0:02:22.8]} 8. Qxd8+
{[%clk 0:02:21.3]} 8... Nxd8 {[%clk 0:02:14.2]} 9. Ng5 {[%clk 0:02:16.2]} 9...
Bf5 {[%clk 0:02:14.5]} 10. g4 {[%clk 0:02:03.2]} 10... Bg6 {[%clk 0:02:12.9]}
11. Bg2 {[%clk 0:02:02.2]} 11... e3 {[%clk 0:02:05.9]} 12. Bxe3 {[%clk
0:01:51.8]} 12... Bxe3 {[%clk 0:02:05.9]} 13. fxe3 {[%clk 0:01:52.7]} 13... h6
{[%clk 0:01:59.8]} 14. Nf3 {[%clk 0:01:46.3]} 14... Be4 {[%clk 0:01:58.6]} 15.
Kf2 {[%clk 0:01:35.4]} 15... Nc6 {[%clk 0:01:54.9]} 16. Rad1 {[%clk 0:01:26.8]}
16... Bxf3 {[%clk 0:01:38.8]} 17. Bxf3 {[%clk 0:01:26.2]} 17... Nxe5 {[%clk
0:01:39.4]} 18. Rd5 {[%clk 0:01:19.7]} 18... Nxf3 {[%clk 0:01:28.6]} 19. Kxf3
{[%clk 0:01:19.8]} 19... Rd8 {[%clk 0:01:24.7]} 20. Rhd1 {[%clk 0:01:14]} 20...
Rxd5 {[%clk 0:01:23.9]} 21. Rxd5 {[%clk 0:01:13.5]} 21... Ke7 {[%clk 0:01:24.1]}
22. Kf4 {[%clk 0:00:57.5]} 22... c6 {[%clk 0:01:15]} 23. Rd4 {[%clk 0:00:51]}
23... g6 {[%clk 0:01:05.7]} 24. h4 {[%clk 0:00:50]} 24... Rg8 {[%clk 0:01:03.6]}
25. a4 {[%clk 0:00:35.4]} 25... Ke6 {[%clk 0:00:58.5]} 26. Re4+ {[%clk
0:00:32.3]} 26... Kd6 {[%clk 0:00:54.9]} 27. Rd4+ {[%clk 0:00:32.8]} 27... Ke7
{[%clk 0:00:51.2]} 28. Re4+ {[%clk 0:00:30.1]} 28... Kd8 {[%clk 0:00:39.2]} 29.
Rd4+ {[%clk 0:00:27.8]} 29... Ke7 {[%clk 0:00:11.4]} 30. Re4+ {[%clk 0:00:27.8]}
30... Kd7 {[%clk 0:00:10.7]} 31. Rd4+ {[%clk 0:00:27.2]} 31... Ke7 {[%clk
0:00:11.1]} 1/2-1/2

[Event "Late-Titled-Tuesday-Blitz-April-23-2024"]
[Site "Chess.com"]
[Date "2024.04.23"]
[Round "8"]
[White "ricaurtelopezj1955"]
[Black "chedimir"]
[Result "0-1"]
[WhiteElo "2188"]
[BlackElo "2462"]
[TimeControl "180+1"]
[EndTime "15:29:02 PDT"]
[Termination "chedimir won on time"]

1. e4 {[%clk 0:02:40.8]} 1... c5 {[%clk 0:02:59.6]} 2. Nf3 {[%clk 0:02:38.1]}
2... e6 {[%clk 0:02:59.2]} 3. d4 {[%clk 0:02:36.3]} 3... cxd4 {[%clk 0:02:59.2]}
4. Nxd4 {[%clk 0:02:36.4]} 4... Nf6 {[%clk 0:02:59.3]} 5. Nc3 {[%clk 0:02:35.2]}
5... d6 {[%clk 0:02:58.2]} 6. f4 {[%clk 0:02:31.2]} 6... Be7 {[%clk 0:02:55.5]}
7. Bd3 {[%clk 0:02:29.4]} 7... Nc6 {[%clk 0:02:51.6]} 8. Nf3 {[%clk 0:02:27.6]}
8... a6 {[%clk 0:02:45.2]} 9. O-O {[%clk 0:02:25.8]} 9... b5 {[%clk 0:02:39.6]}
10. a3 {[%clk 0:02:24]} 10... Bb7 {[%clk 0:02:38.7]} 11. Qe2 {[%clk 0:02:22.6]}
11... O-O {[%clk 0:02:37]} 12. Kh1 {[%clk 0:02:22]} 12... e5 {[%clk 0:02:33.8]}
13. Nh4 {[%clk 0:02:11]} 13... Nd4 {[%clk 0:02:10.5]} 14. Qe1 {[%clk 0:01:52.4]}
14... exf4 {[%clk 0:01:27.8]} 15. Bxf4 {[%clk 0:01:29.8]} 15... Nh5 {[%clk
0:01:26.2]} 16. Nf5 {[%clk 0:01:26.8]} 16... Nxf5 {[%clk 0:01:23.6]} 17. exf5
{[%clk 0:01:25.3]} 17... Nxf4 {[%clk 0:01:17.5]} 18. Rxf4 {[%clk 0:01:25.7]}
18... Bf6 {[%clk 0:01:17.5]} 19. Rg4 {[%clk 0:00:54.2]} 19... Re8 {[%clk
0:01:09]} 20. Qg3 {[%clk 0:00:49.4]} 20... h5 {[%clk 0:01:06.9]} 21. Re4 {[%clk
0:00:29.6]} 21... Bxe4 {[%clk 0:01:01.7]} 22. Nxe4 {[%clk 0:00:27.3]} 22... Be5
{[%clk 0:00:47.8]} 23. Qh3 {[%clk 0:00:21.3]} 23... d5 {[%clk 0:00:47.6]} 24.
Nc3 {[%clk 0:00:14.7]} 24... Bxc3 {[%clk 0:00:39.8]} 25. bxc3 {[%clk 0:00:12]}
25... Qg5 {[%clk 0:00:39.4]} 26. Qf3 {[%clk 0:00:08.8]} 26... Rad8 {[%clk
0:00:38.9]} 27. h3 {[%clk 0:00:06.5]} 27... h4 {[%clk 0:00:37.9]} 28. Rf1 {[%clk
0:00:03.5]} 28... Re3 {[%clk 0:00:36.4]} 29. Qf2 {[%clk 0:00:02.5]} 29... Qg3
{[%clk 0:00:35.8]} 0-1

[Event "Late-Titled-Tuesday-Blitz-April-23-2024"]
[Site "Chess.com"]
[Date "2024.04.23"]
[Round "8"]
[White "ccccvhhhj"]
[Black "ZachHKL"]
[Result "0-1"]
[WhiteElo "2455"]
[BlackElo "2316"]
[TimeControl "180+1"]
[EndTime "15:29:05 PDT"]
[Termination "ZachHKL won on time"]

1. e4 {[%clk 0:03:00.3]} 1... c5 {[%clk 0:02:56.5]} 2. Nf3 {[%clk 0:03:00.6]}
2... Nc6 {[%clk 0:02:57.4]} 3. d4 {[%clk 0:03:01]} 3... cxd4 {[%clk 0:02:57.9]}
4. Nxd4 {[%clk 0:03:01.9]} 4... Nf6 {[%clk 0:02:58.1]} 5. Nc3 {[%clk 0:03:01.9]}
5... e5 {[%clk 0:02:58.5]} 6. Ndb5 {[%clk 0:03:02.7]} 6... d6 {[%clk 0:02:57.6]}
7. Bg5 {[%clk 0:03:03]} 7... a6 {[%clk 0:02:57.9]} 8. Na3 {[%clk 0:03:03.8]}
8... b5 {[%clk 0:02:58.4]} 9. Bxf6 {[%clk 0:03:04.6]} 9... gxf6 {[%clk
0:02:58.2]} 10. Nd5 {[%clk 0:03:05.5]} 10... f5 {[%clk 0:02:57]} 11. g3 {[%clk
0:03:05.4]} 11... Bg7 {[%clk 0:02:56.8]} 12. Bg2 {[%clk 0:03:05.5]} 12... O-O
{[%clk 0:02:57.2]} 13. exf5 {[%clk 0:03:05.5]} 13... Bxf5 {[%clk 0:02:57.1]} 14.
Ne3 {[%clk 0:03:06.2]} 14... Bd7 {[%clk 0:02:55]} 15. Qxd6 {[%clk 0:03:05.9]}
15... Nd4 {[%clk 0:02:52.4]} 16. c3 {[%clk 0:03:01.2]} 16... b4 {[%clk
0:02:40.4]} 17. cxb4 {[%clk 0:02:21]} 17... Rb8 {[%clk 0:02:34]} 18. O-O {[%clk
0:02:20.9]} 18... Rb6 {[%clk 0:02:31.3]} 19. Qc5 {[%clk 0:02:13.4]} 19... Bb5
{[%clk 0:02:21.3]} 20. Rfd1 {[%clk 0:01:52.1]} 20... Qb8 {[%clk 0:01:58.6]} 21.
Nd5 {[%clk 0:01:34.8]} 21... Rh6 {[%clk 0:01:55.5]} 22. Nc2 {[%clk 0:01:17.1]}
22... Kh8 {[%clk 0:01:35.2]} 23. Nxd4 {[%clk 0:01:14.1]} 23... exd4 {[%clk
0:01:33]} 24. Nf4 {[%clk 0:00:49.2]} 24... Rc8 {[%clk 0:01:23.2]} 25. Qf5 {[%clk
0:00:43]} 25... Kg8 {[%clk 0:01:21.5]} 26. Nd5 {[%clk 0:00:36.5]} 26... Re8
{[%clk 0:01:14.2]} 27. Re1 {[%clk 0:00:32.8]} 27... Rhe6 {[%clk 0:01:06.1]} 28.
Red1 {[%clk 0:00:20.9]} 28... Re5 {[%clk 0:01:03.6]} 29. Qf3 {[%clk 0:00:16.2]}
29... Be2 {[%clk 0:01:00.3]} 30. Nf6+ {[%clk 0:00:07.7]} 30... Bxf6 {[%clk
0:00:57.4]} 31. Qxf6 {[%clk 0:00:08.6]} 31... Bxd1 {[%clk 0:00:57.3]} 32. Rxd1
{[%clk 0:00:09.5]} 32... Re1+ {[%clk 0:00:57.3]} 33. Rxe1 {[%clk 0:00:10.1]}
33... Rxe1+ {[%clk 0:00:57.7]} 34. Bf1 {[%clk 0:00:11]} 34... Qb5 {[%clk
0:00:56]} 35. Qd8+ {[%clk 0:00:09.2]} 35... Kg7 {[%clk 0:00:53.9]} 36. Qxd4+
{[%clk 0:00:10.1]} 36... f6 {[%clk 0:00:53.3]} 37. Qg4+ {[%clk 0:00:06.8]} 37...
Kf7 {[%clk 0:00:50.9]} 38. Qh5+ {[%clk 0:00:04.9]} 38... Qxh5 {[%clk 0:00:49.9]}
0-1

[Event "Late-Titled-Tuesday-Blitz-April-23-2024"]
[Site "Chess.com"]
[Date "2024.04.23"]
[Round "8"]
[White "tarno17"]
[Black "Kostukov_Alex"]
[Result "1-0"]
[WhiteElo "2169"]
[BlackElo "2356"]
[TimeControl "180+1"]
[EndTime "15:29:05 PDT"]
[Termination "tarno17 won by checkmate"]

1. e4 {[%clk 0:03:00.9]} 1... c5 {[%clk 0:02:37.1]} 2. Nf3 {[%clk 0:03:00.1]}
2... g6 {[%clk 0:02:36.8]} 3. g3 {[%clk 0:02:57.9]} 3... Bg7 {[%clk 0:02:36.2]}
4. Bg2 {[%clk 0:02:58.4]} 4... Nc6 {[%clk 0:02:35.3]} 5. d3 {[%clk 0:02:59]}
5... d6 {[%clk 0:02:35.6]} 6. O-O {[%clk 0:02:59.7]} 6... e5 {[%clk 0:02:35.7]}
7. Nc3 {[%clk 0:02:52.3]} 7... h6 {[%clk 0:02:33.5]} 8. Ne2 {[%clk 0:02:52]}
8... Nge7 {[%clk 0:02:33.3]} 9. h3 {[%clk 0:02:51.7]} 9... O-O {[%clk
0:02:33.1]} 10. Nh2 {[%clk 0:02:51]} 10... f5 {[%clk 0:02:32.1]} 11. f4 {[%clk
0:02:49]} 11... Be6 {[%clk 0:02:31.9]} 12. Nf3 {[%clk 0:02:20.1]} 12... Qd7
{[%clk 0:02:22.8]} 13. Kh2 {[%clk 0:02:15.6]} 13... Rae8 {[%clk 0:02:17.4]} 14.
Nh4 {[%clk 0:01:59.8]} 14... Kh7 {[%clk 0:02:07.5]} 15. c3 {[%clk 0:01:31]}
15... d5 {[%clk 0:01:57.5]} 16. exf5 {[%clk 0:01:20]} 16... Nxf5 {[%clk
0:01:55.1]} 17. Nxf5 {[%clk 0:00:49.3]} 17... Bxf5 {[%clk 0:01:49.1]} 18. fxe5
{[%clk 0:00:43.6]} 18... Nxe5 {[%clk 0:01:38.2]} 19. Nf4 {[%clk 0:00:41.2]}
19... d4 {[%clk 0:01:27.6]} 20. g4 {[%clk 0:00:23.3]} 20... Bxg4 {[%clk
0:01:17.9]} 21. hxg4 {[%clk 0:00:18.9]} 21... Nxg4+ {[%clk 0:01:18.8]} 22. Kg1
{[%clk 0:00:14.4]} 22... Ne3 {[%clk 0:01:14.5]} 23. Bxe3 {[%clk 0:00:12.2]}
23... dxe3 {[%clk 0:01:14.8]} 24. Qe2 {[%clk 0:00:06.6]} 24... Rf5 {[%clk
0:01:09.5]} 25. Nh3 {[%clk 0:00:05.8]} 25... Rh5 {[%clk 0:01:04.7]} 26. Rf3
{[%clk 0:00:05.3]} 26... Ree5 {[%clk 0:00:54.7]} 27. Raf1 {[%clk 0:00:03.3]}
27... Rhf5 {[%clk 0:00:48.5]} 28. Rxe3 {[%clk 0:00:02.7]} 28... Qe7 {[%clk
0:00:47.3]} 29. Rxe5 {[%clk 0:00:02.7]} 29... Rxe5 {[%clk 0:00:48]} 30. Qf2
{[%clk 0:00:02.9]} 30... Re2 {[%clk 0:00:45.9]} 31. Qf7 {[%clk 0:00:02.7]} 31...
Qe4 {[%clk 0:00:46.4]} 32. Bxe4 {[%clk 0:00:02.4]} 32... Rxe4 {[%clk 0:00:39.6]}
33. dxe4 {[%clk 0:00:02.2]} 33... h5 {[%clk 0:00:40.5]} 34. Ng5+ {[%clk
0:00:02.1]} 34... Kh6 {[%clk 0:00:40.9]} 35. Ne6 {[%clk 0:00:02.8]} 35... Kh7
{[%clk 0:00:41.3]} 36. Qxg7# {[%clk 0:00:03]} 1-0

[Event "Late-Titled-Tuesday-Blitz-April-23-2024"]
[Site "Chess.com"]
[Date "2024.04.23"]
[Round "8"]
[White "HipsterChess22"]
[Black "DonJuanEGenaro"]
[Result "1-0"]
[WhiteElo "2228"]
[BlackElo "2023"]
[TimeControl "180+1"]
[EndTime "15:29:11 PDT"]
[Termination "HipsterChess22 won on time"]

1. d4 {[%clk 0:03:00.2]} 1... Nf6 {[%clk 0:02:50.5]} 2. Nc3 {[%clk 0:02:59.7]}
2... d5 {[%clk 0:02:48.9]} 3. Bf4 {[%clk 0:02:59.3]} 3... c6 {[%clk 0:02:45.7]}
4. e3 {[%clk 0:02:58]} 4... Bf5 {[%clk 0:02:45]} 5. Nf3 {[%clk 0:02:57.4]} 5...
e6 {[%clk 0:02:43.8]} 6. Ne5 {[%clk 0:02:56.2]} 6... Nbd7 {[%clk 0:02:41.2]} 7.
g4 {[%clk 0:02:53.8]} 7... Nxe5 {[%clk 0:02:28.8]} 8. gxf5 {[%clk 0:02:51.5]}
8... Ned7 {[%clk 0:02:27.3]} 9. fxe6 {[%clk 0:02:50.2]} 9... fxe6 {[%clk
0:02:27.3]} 10. Bh3 {[%clk 0:02:41]} 10... Qe7 {[%clk 0:02:23.5]} 11. Qd3 {[%clk
0:02:38.5]} 11... e5 {[%clk 0:02:18.5]} 12. Bxd7+ {[%clk 0:02:19.7]} 12... Nxd7
{[%clk 0:02:00.9]} 13. dxe5 {[%clk 0:02:19.3]} 13... g5 {[%clk 0:01:46.8]} 14.
e6 {[%clk 0:02:07.1]} 14... Nc5 {[%clk 0:01:21.4]} 15. Qd4 {[%clk 0:01:56.7]}
15... Bg7 {[%clk 0:01:09.2]} 16. Bxg5 {[%clk 0:01:43.7]} 16... Qxg5 {[%clk
0:00:47.8]} 17. Qxc5 {[%clk 0:01:40.5]} 17... O-O-O {[%clk 0:00:43.3]} 18. Qxa7
{[%clk 0:01:33.6]} 18... d4 {[%clk 0:00:41.4]} 19. Ne4 {[%clk 0:00:58.5]} 19...
Qd5 {[%clk 0:00:32.4]} 20. e7 {[%clk 0:00:39.2]} 20... Rd7 {[%clk 0:00:25.4]}
21. f3 {[%clk 0:00:32.3]} 21... Rxe7 {[%clk 0:00:23.4]} 22. O-O-O {[%clk
0:00:30]} 22... Kc7 {[%clk 0:00:13.4]} 23. exd4 {[%clk 0:00:27.9]} 23... Ree8
{[%clk 0:00:09.8]} 24. Qc5 {[%clk 0:00:26.2]} 24... Qxa2 {[%clk 0:00:08.3]} 25.
Qd6+ {[%clk 0:00:23.3]} 25... Kc8 {[%clk 0:00:06.7]} 26. Nc5 {[%clk 0:00:20.2]}
1-0

[Event "Late-Titled-Tuesday-Blitz-April-23-2024"]
[Site "Chess.com"]
[Date "2024.04.23"]
[Round "8"]
[White "SahibSinghKnight"]
[Black "Licancabur"]
[Result "1-0"]
[WhiteElo "2644"]
[BlackElo "2475"]
[TimeControl "180+1"]
[EndTime "15:29:12 PDT"]
[Termination "SahibSinghKnight won by resignation"]

1. e4 {[%clk 0:03:00.9]} 1... Nf6 {[%clk 0:02:59.3]} 2. e5 {[%clk 0:03:01]} 2...
Nd5 {[%clk 0:02:59.4]} 3. c4 {[%clk 0:03:01.7]} 3... Nb6 {[%clk 0:02:58.9]} 4.
d4 {[%clk 0:03:02.1]} 4... d6 {[%clk 0:02:59.3]} 5. exd6 {[%clk 0:03:01.2]} 5...
cxd6 {[%clk 0:02:58.6]} 6. Nc3 {[%clk 0:03:01.2]} 6... g6 {[%clk 0:02:58.9]} 7.
Be3 {[%clk 0:02:59.7]} 7... Bg7 {[%clk 0:02:59.4]} 8. Rc1 {[%clk 0:03:00.3]}
8... O-O {[%clk 0:02:59.8]} 9. b3 {[%clk 0:03:00.8]} 9... e5 {[%clk 0:03:00.3]}
10. dxe5 {[%clk 0:03:01.2]} 10... dxe5 {[%clk 0:03:00.2]} 11. Qxd8 {[%clk
0:03:01.6]} 11... Rxd8 {[%clk 0:02:59.8]} 12. c5 {[%clk 0:03:02.5]} 12... N6d7
{[%clk 0:02:59.3]} 13. Nf3 {[%clk 0:03:00.5]} 13... Nc6 {[%clk 0:02:57.9]} 14.
Ne4 {[%clk 0:02:41.1]} 14... h6 {[%clk 0:02:51.9]} 15. Bd2 {[%clk 0:02:30]}
15... Nf8 {[%clk 0:02:38.3]} 16. Nd6 {[%clk 0:02:27.5]} 16... e4 {[%clk
0:02:00.5]} 17. Ng1 {[%clk 0:02:25.7]} 17... b6 {[%clk 0:01:45.4]} 18. b4 {[%clk
0:02:20.6]} 18... bxc5 {[%clk 0:01:43.7]} 19. bxc5 {[%clk 0:02:21.5]} 19... Be6
{[%clk 0:01:27.7]} 20. Ba6 {[%clk 0:02:09.8]} 20... Rab8 {[%clk 0:01:21.7]} 21.
Ne2 {[%clk 0:02:07.5]} 21... Rb2 {[%clk 0:01:17.5]} 22. Bc3 {[%clk 0:01:53.2]}
22... Rxa2 {[%clk 0:01:14.8]} 23. Bb7 {[%clk 0:01:47.4]} 23... Ne5 {[%clk
0:00:53.8]} 24. Bxe4 {[%clk 0:01:46.9]} 24... a5 {[%clk 0:00:39.4]} 25. Bb1
{[%clk 0:01:44.5]} 25... Ra3 {[%clk 0:00:36.2]} 26. O-O {[%clk 0:01:43.2]} 26...
Nc6 {[%clk 0:00:29.6]} 27. Be4 {[%clk 0:01:38.4]} 27... Nb4 {[%clk 0:00:29.3]}
28. Bxg7 {[%clk 0:01:31.5]} 28... Kxg7 {[%clk 0:00:29]} 29. Ra1 {[%clk
0:01:31.4]} 29... Ra2 {[%clk 0:00:22.9]} 30. Nc3 {[%clk 0:01:24.1]} 30... Rxa1
{[%clk 0:00:19.8]} 31. Rxa1 {[%clk 0:01:25]} 31... Nd7 {[%clk 0:00:20]} 32. Nb7
{[%clk 0:01:25.1]} 32... Rc8 {[%clk 0:00:17.9]} 33. Rxa5 {[%clk 0:01:23.8]}
33... Nc6 {[%clk 0:00:15.7]} 34. Bxc6 {[%clk 0:01:04.7]} 34... Rxc6 {[%clk
0:00:15.4]} 35. Na4 {[%clk 0:01:04.3]} 35... Ne5 {[%clk 0:00:13.1]} 36. Nd8
{[%clk 0:01:03]} 36... Rc8 {[%clk 0:00:12]} 37. Nxe6+ {[%clk 0:01:02.3]} 37...
fxe6 {[%clk 0:00:12.3]} 38. h3 {[%clk 0:00:58.1]} 38... Kf6 {[%clk 0:00:12.8]}
39. Nb6 {[%clk 0:00:57.5]} 39... Nd3 {[%clk 0:00:10.8]} 40. Nxc8 {[%clk
0:00:56.7]} 1-0

[Event "Late-Titled-Tuesday-Blitz-April-23-2024"]
[Site "Chess.com"]
[Date "2024.04.23"]
[Round "8"]
[White "Polish_fighter3000"]
[Black "Naoki"]
[Result "0-1"]
[WhiteElo "3080"]
[BlackElo "2586"]
[TimeControl "180+1"]
[EndTime "15:29:13 PDT"]
[Termination "Naoki won on time"]

1. d4 {[%clk 0:03:00.9]} 1... Nf6 {[%clk 0:02:57.6]} 2. c4 {[%clk 0:03:00.9]}
2... g6 {[%clk 0:02:57.8]} 3. Nc3 {[%clk 0:03:00.4]} 3... Bg7 {[%clk 0:02:58.3]}
4. e4 {[%clk 0:03:00.3]} 4... d6 {[%clk 0:02:59]} 5. h4 {[%clk 0:03:00.3]} 5...
O-O {[%clk 0:02:22.5]} 6. Be2 {[%clk 0:02:59.6]} 6... c5 {[%clk 0:02:21.4]} 7.
d5 {[%clk 0:02:59.6]} 7... e6 {[%clk 0:02:20.1]} 8. h5 {[%clk 0:02:59.9]} 8...
exd5 {[%clk 0:02:20.1]} 9. exd5 {[%clk 0:02:57.2]} 9... Re8 {[%clk 0:02:15.9]}
10. h6 {[%clk 0:02:57.1]} 10... Bh8 {[%clk 0:02:08.9]} 11. Kf1 {[%clk
0:02:57.1]} 11... Ne4 {[%clk 0:02:03.4]} 12. Nxe4 {[%clk 0:02:55.9]} 12... Rxe4
{[%clk 0:02:04.3]} 13. Bd3 {[%clk 0:02:56.2]} 13... Re8 {[%clk 0:02:04.2]} 14.
Qc2 {[%clk 0:02:35.4]} 14... Nd7 {[%clk 0:02:03.9]} 15. Nf3 {[%clk 0:02:35.9]}
15... Ne5 {[%clk 0:01:54.1]} 16. Nxe5 {[%clk 0:02:32.6]} 16... Bxe5 {[%clk
0:01:55]} 17. Bd2 {[%clk 0:02:31.6]} 17... Qf6 {[%clk 0:01:47.1]} 18. Re1 {[%clk
0:02:26.4]} 18... Bd7 {[%clk 0:01:46.3]} 19. Bc1 {[%clk 0:02:04.1]} 19... Bd4
{[%clk 0:01:37.3]} 20. Be4 {[%clk 0:01:28.4]} 20... Rxe4 {[%clk 0:00:44.2]} 21.
Rxe4 {[%clk 0:01:29.3]} 21... Bf5 {[%clk 0:00:44.6]} 22. f3 {[%clk 0:01:27.2]}
22... Bxe4 {[%clk 0:00:44.9]} 23. Qxe4 {[%clk 0:01:27.4]} 23... Bxb2 {[%clk
0:00:45.6]} 24. Bxb2 {[%clk 0:00:47.4]} 24... Qxb2 {[%clk 0:00:46.5]} 25. Rh4
{[%clk 0:00:47.2]} 25... Qf6 {[%clk 0:00:36.1]} 26. a4 {[%clk 0:00:29.8]} 26...
Kf8 {[%clk 0:00:25]} 27. Rf4 {[%clk 0:00:16.3]} 27... Qa1+ {[%clk 0:00:25]} 28.
Kf2 {[%clk 0:00:15.9]} 28... Re8 {[%clk 0:00:25.6]} 29. Rxf7+ {[%clk 0:00:04]}
29... Kxf7 {[%clk 0:00:26.5]} 30. Qf4+ {[%clk 0:00:03.6]} 30... Qf6 {[%clk
0:00:27]} 31. Qe5 {[%clk 0:00:02.9]} 31... Rxe5 {[%clk 0:00:26.7]} 0-1

[Event "Late-Titled-Tuesday-Blitz-April-23-2024"]
[Site "Chess.com"]
[Date "2024.04.23"]
[Round "8"]
[White "Harry_Rakkel"]
[Black "ATM622"]
[Result "1-0"]
[WhiteElo "2682"]
[BlackElo "2513"]
[TimeControl "180+1"]
[EndTime "15:29:24 PDT"]
[Termination "Harry_Rakkel won on time"]

1. e4 {[%clk 0:02:56.8]} 1... c6 {[%clk 0:02:59.8]} 2. d4 {[%clk 0:02:55.2]}
2... d5 {[%clk 0:03:00.7]} 3. exd5 {[%clk 0:02:55.1]} 3... cxd5 {[%clk
0:03:01.6]} 4. Bd3 {[%clk 0:02:55]} 4... Nc6 {[%clk 0:02:58.1]} 5. c3 {[%clk
0:02:54.8]} 5... Qc7 {[%clk 0:02:34.8]} 6. Na3 {[%clk 0:02:53.4]} 6... a6 {[%clk
0:02:34.8]} 7. Nc2 {[%clk 0:02:53]} 7... g6 {[%clk 0:02:35.2]} 8. Ne2 {[%clk
0:02:50.4]} 8... Bg7 {[%clk 0:02:35.3]} 9. Bf4 {[%clk 0:02:49.4]} 9... e5 {[%clk
0:02:33.9]} 10. dxe5 {[%clk 0:02:48.3]} 10... Nxe5 {[%clk 0:02:31]} 11. O-O
{[%clk 0:02:40.2]} 11... Ne7 {[%clk 0:02:30.5]} 12. Ned4 {[%clk 0:02:31.4]}
12... O-O {[%clk 0:02:28.4]} 13. Re1 {[%clk 0:02:31.4]} 13... Re8 {[%clk
0:02:18.7]} 14. Qd2 {[%clk 0:01:55.9]} 14... N7c6 {[%clk 0:01:58.2]} 15. Re3
{[%clk 0:01:42.2]} 15... f6 {[%clk 0:01:49.2]} 16. Rae1 {[%clk 0:01:35.4]} 16...
Qf7 {[%clk 0:01:40.7]} 17. Bf1 {[%clk 0:01:26.7]} 17... Bd7 {[%clk 0:01:38.2]}
18. h3 {[%clk 0:01:21.8]} 18... Na5 {[%clk 0:01:28.1]} 19. b3 {[%clk 0:01:19.5]}
19... Nac6 {[%clk 0:01:27.8]} 20. Bh2 {[%clk 0:01:18.9]} 20... Nxd4 {[%clk
0:01:14.3]} 21. Qxd4 {[%clk 0:01:12.8]} 21... Nc6 {[%clk 0:01:13.1]} 22. Qb6
{[%clk 0:01:12.5]} 22... Bf5 {[%clk 0:00:55.7]} 23. Rxe8+ {[%clk 0:01:08.2]}
23... Rxe8 {[%clk 0:00:56.6]} 24. Rxe8+ {[%clk 0:01:08.1]} 24... Qxe8 {[%clk
0:00:57.5]} 25. Ne3 {[%clk 0:01:08.5]} 25... Qd7 {[%clk 0:00:49.7]} 26. Nxd5
{[%clk 0:01:03.6]} 26... Be6 {[%clk 0:00:28.2]} 27. Nc7 {[%clk 0:00:55.4]} 27...
Bf7 {[%clk 0:00:28.4]} 28. Qxb7 {[%clk 0:00:55]} 28... f5 {[%clk 0:00:22.7]} 29.
Qxa6 {[%clk 0:00:49.2]} 29... Bxc3 {[%clk 0:00:20]} 30. Qd3 {[%clk 0:00:41.9]}
30... Bd4 {[%clk 0:00:09.8]} 31. Nb5 {[%clk 0:00:34.1]} 31... Kg7 {[%clk
0:00:02.9]} 32. Nd6 {[%clk 0:00:33.1]} 32... Be5 {[%clk 0:00:02.5]} 33. Bxe5+
{[%clk 0:00:28.4]} 33... Nxe5 {[%clk 0:00:02.8]} 34. Qd4 {[%clk 0:00:29]} 34...
Kf6 {[%clk 0:00:02.7]} 35. f4 {[%clk 0:00:24.7]} 1-0